Workbook

Sheet PFP
A1: PROPOSTA FINANCEIRA DO PROJETO | J1: CODIGO:
J2: PFP
A3: ADAPTAÇÃO DO PROJETO EXECUTIVO DO SISTEMA ADUTOR DE MARCOLÂNDIA-PI E DISTRITO DE SERRÂNIA (ARARIPINA-PE)
A5: NOME DA EMPRESA:
A7: PROJETO: | F7: CONTRATANTE: | J7: BASE:
A8: ADAPTAÇÃO DO PROJETO EXECUTIVO DO SISTEMA ADUTOR DE MARCOLÂNDIA-PI E DISTRITO DE SERRÂNIA (ARARIPINA-PE) | F8: CODEVASF (7SR) | J8: SICRO: abr/24 CODE: out/24*
A9: Base | B9: Cod1 | C9: Cod2 | D9: Categoria / Insumo | E9: Uni | F9: Qde | G9: CUD | H9: PU | I9: FatorK | J9: CT | K9: PT
A10: SICRO | B10: MO3 | C10: C | D10: Engenheiro consultor especial - P8060 | E10: mês | F10: =VLOOKUP(C10,'CRO1_Ins-Pro'!$A$4:$S$14,4,FALSE) -> 0.2 | G10: 21440.03 | H10: =ROUND(I10*G10,2) -> 30961.55 | I10: =IF(B10="MO1",Ka,IF(B10="MO2",Kb,IF(B10="MO3",Kc,Kd))) -> 1.4441 | J10: =ROUND(F10*G10,2) -> 4288.01 | K10: =ROUND(F10*H10,2) -> 6192.31
A11: SICRO | B11: MO2 | C11: P0 | D11: Engenheiro de projetos sênior - P8067 | E11: mês | F11: =VLOOKUP(C11,'CRO1_Ins-Pro'!$A$4:$S$14,4,FALSE) -> 0.8 | G11: 15564.54 | H11: 26386.56 | I11: 1.6953 | J11: 12451.63 | K11: 21109.25
A12: SICRO | B12: MO1 | C12: P1 | D12: Engenheiro de projetos pleno - P8066 | E12: mês | F12: =VLOOKUP(C12,'CRO1_Ins-Pro'!$A$4:$S$14,4,FALSE) -> 1.7 | G12: 12379.96 | H12: 29012.44 | I12: 2.3435 | J12: 21045.93 | K12: 49321.15
A13: SICRO | B13: MO1 | C13: P3 | D13: Engenheiro de projetos júnior - P8065 | E13: mês | F13: =VLOOKUP(C13,'CRO1_Ins-Pro'!$A$4:$S$14,4,FALSE) -> 1.4 | G13: 12002 | H13: 28126.69 | I13: 2.3435 | J13: 16802.8 | K13: 39377.37
A14: SICRO | B14: MO1 | C14: T2 | D14: Técnico de obras - P8147 | E14: mês | F14: =VLOOKUP(C14,'CRO1_Ins-Pro'!$A$4:$S$14,4,FALSE) -> 0.65 | G14: 3167.62 | H14: 7423.32 | I14: 2.3435 | J14: 2058.95 | K14: 4825.16
A15: SICRO | B15: MO1 | C15: A0 | D15: Secretária - P8135 | E15: mês | F15: =VLOOKUP(C15,'CRO1_Ins-Pro'!$A$4:$S$14,4,FALSE) -> 0.24 | G15: 2604.78 | H15: 6104.3 | I15: 2.3435 | J15: 625.15 | K15: 1465.03
A16: PROP | B16: DP | C16: V1 | D16: Diárias | E16: dia | F16: =VLOOKUP(C16,'CRO1_Ins-Pro'!$A$4:$S$14,4,FALSE) -> 4 | G16: 353.39 | H16: 443.79 | I16: 1.2558 | J16: 1413.56 | K16: 1775.16
A17: PROP | B17: DP | C17: V3 | D17: Aluguel de mini Pick-up | E17: dia | F17: ='CRO1_Ins-Pro'!D13 -> 3 | G17: 427.04 | H17: 536.28 | I17: 1.2558 | J17: 1281.12 | K17: 1608.84
A18: PROP | B18: DP | C18: V4 | D18: Passagens Aéreas (ida e volta) | E18: un | F18: ='CRO1_Ins-Pro'!D14 -> 1 | G18: 1613.69 | H18: 2026.47 | I18: 1.2558 | J18: 1613.69 | K18: 2026.47
A19: TOTAL DOS CUSTOS DIRETOS | H19: =SUM(J10:J18) -> 61580.84
A20: TOTAL DOS ENCARGOS E DISPESAS DIVERSAS | H20: =H21-H19 -> 66119.9
A21: TOTAL DA PROPOSTA A PREÇO GLOBAL | H21: =ROUND(SUM(K10:K18),2) -> 127700.74
A22: TOTAL DA PROPOSTA A PREÇO UNITÁRIO | H22: 0
A23: TOTAL DA PROPOSTA | H23: =H21+H22 -> 127700.74
A24: OBSERVAÇÃO:
A25: Alocar os Insumos MO, com respectivo FatorK, dentro da categoria de vínculo contratual (com ou sem) de cada tipo de profissional
A26: Uni - unidade de medição do insumo;
A27: Qde - Quantidade do Insumo (não pode ocorrer alteração pela Licitante)
A28: CUD - Custo Unitário Direto do Insumo (sem encargos, taxas e impostos, valor não pode ser maior que o Orçado pela Codevasf)
A29: CT - Custo Total (sem encargos, taxas e impostos) - CT = Qde x CUD
A30: FatorK - Taxa de Ressarcimento de Despesas e Encargos (detalhar composição nas Planilhas "PFP2.1", "PFP2.2", "PFP3")
A31: PU - Preço Unitário do Insumo (incluído encargos, taxas e impostos) - PU = CUD x FatorK
A32: PT - Preço Total do Insumo (incluído encargos, taxas e impostos) - PT = Qde x PU
A33: P - Profissionais nível superior nas áreas de Engenharia, Química, Arquitetura, Agronomia e Veterinária, conforme disposições da Lei 4.950-A/66
A34: S - Profissionais de nível superior nas demais áreas de atuação, incluindo Arqueólogo, Biólogo, Geógrafo e Socioólogo
A35: T - Profissionais de nível médio técnico nas diversas áreas de atuação
A36: A - Profissionais de nível médio de apoio técnico-administrativo
A37: * atualizado com base na variação do índice setorial publicado na revista “Conjuntura Econômica” da Fundação Getúlio Vargas, correspondente à coluna 39 (Custo Nacional da Construção Civil) - Serviços de Consultoria; Data inicial: Jan/20 - Data final: out/24.

Sheet PFP1.1_Topo (hidden)
A1: SERVIÇOS TOPOGRÁFICOS/CARTOGRÁFICOS | G1: CODIGO:
G2: PFP-1.1
A3: =PFP!A3 -> ADAPTAÇÃO DO PROJETO EXECUTIVO DO SISTEMA ADUTOR DE MARCOLÂNDIA-PI E DISTRITO DE SERRÂNIA (ARARIPINA-PE)
A4: NOME DA EMPRESA:
A6: PROJETO: | E6: CONTRATANTE: | G6: =PFP!J7 -> BASE:
A7: =PFP!A8 -> ADAPTAÇÃO DO PROJETO EXECUTIVO DO SISTEMA ADUTOR DE MARCOLÂNDIA-PI E DISTRITO DE SERRÂNIA (ARARIPINA-PE) | E7: =PFP!F8 -> CODEVASF (7SR) | G7: =PFP!J8 -> SICRO: abr/24 CODE: out/24*
A8: Cod. | B8: Base | C8: Insumos | D8: Uni | E8: Qde | F8: Preço Unitário (PU) | G8: Preço Total (PT)
A9: TP17 | B9: CODE | C9: LEVANTAMENTO PLANIALTIMÉTRICO SEMI-CADASTRAL | D9: ha | F9: 1290.68 | G9: =ROUND(F9*E9,2) -> 0
A10: TP19 | B10: CODE | C10: PONTOS GPS, COM RECEPTORES DE DUPLA FREQUENCIA (L1/L2) | D10: und | F10: 965.49 | G10: 0
A11: TP30 | B11: CODE | C11: IMAGEM DE SATÉLITE DE ALTA DEFINIÇÃO 0,5 M | D11: km2 | F11: 129.11 | G11: 0
A12: TP31 | B12: CODE | C12: PROCEDIMENTO DE ORTORRETIFICAÇÃO DE IMAGEM | D12: km2 | F12: 22.26 | G12: 0
B13: CODE
B14: CODE
B15: CODE
B16: CODE
B17: CODE
A18: TOTAL SERVIÇOS TOPOGRÁFICOS | G18: =SUM(G9:G17) -> 0
A19: OBSERVAÇÃO:
A20: Uni - unidade de medição do insumo;
A21: Qde - Quantidade do Insumo (não pode ocorrer alteração pela Licitante)
A22: PU - Preço Unitário (composições padrão da Codevasf, já incluso o FatorK)
A23: PT - Preço Total (incluído encargos, taxas e impostos) - PT = Qde x PU
A24: * atualizado com base na variação do índice setorial publicado na revista “Conjuntura Econômica” da Fundação Getúlio Vargas, correspondente à coluna 39 (Custo Nacional da Construção Civil) - Serviços de Consultoria; Data inicial: Jan/19 - Data final: Mai/24.

Sheet PFP1.2_Geo (hidden)
A1: SERVIÇOS GEOLÓGICOS/GEOTÉCNICOS | G1: CODIGO:
G2: PFP-1.2
A3: =PFP!A3 -> ADAPTAÇÃO DO PROJETO EXECUTIVO DO SISTEMA ADUTOR DE MARCOLÂNDIA-PI E DISTRITO DE SERRÂNIA (ARARIPINA-PE)
A4: NOME DA EMPRESA:
A6: PROJETO: | E6: CONTRATANTE: | G6: =PFP!J7 -> BASE:
A7: =PFP!A8 -> ADAPTAÇÃO DO PROJETO EXECUTIVO DO SISTEMA ADUTOR DE MARCOLÂNDIA-PI E DISTRITO DE SERRÂNIA (ARARIPINA-PE) | E7: =PFP!F8 -> CODEVASF (7SR) | G7: =PFP!J8 -> SICRO: abr/24 CODE: out/24*
A8: Cod. | B8: Base | C8: Insumos | D8: Uni | E8: Qde | F8: Preço Unitário (PU) | G8: Preço Total (PT)
A9: GT08 | B9: CODE | C9: SONDAGEM À PERCUSSÃO: MOBILIZAÇÃO E DESMOBILIZAÇÃO DE EQUIPAMENTOS | D9: und | F9: 1014.41 | G9: =ROUND(F9*E9,2) -> 0
A10: GT09 | B10: CODE | C10: SONDAGEM À PERCUSSÃO COM SPT | D10: m | F10: 88.96 | G10: 0
A11: GT10 | B11: CODE | C11: SONDAGEM À PERCUSSÃO: DESLOCAMENTO DE 0 A 200 METROS | D11: und | F11: 770.99 | G11: 0
A12: GT11 | B12: CODE | C12: SONDAGEM À PERCUSSÃO: DESLOCAMENTO DE 201 A 500 METROS | D12: und | F12: 1146.6 | G12: 0
A13: GT12 | B13: CODE | C13: SONDAGEM À PERCUSSÃO: DESLOCAMENTO ACIMA DE 500 METROS | D13: und | F13: 1522.21 | G13: 0
A14: GT14 | B14: CODE | C14: SONDAGEM A TRADO (4") | D14: m | F14: 76.85 | G14: 0
A15: GT16 | B15: CODE | C15: Ensaio: UMIDADE NATURAL | D15: und | F15: 83.56 | G15: 0
A16: GT17 | B16: CODE | C16: Ensaio: DENSIDADE NATURAL | D16: und | F16: 83.56 | G16: 0
A17: GT18 | B17: CODE | C17: Ensaio: LIMITE DE LIQUIDEZ | D17: und | F17: 114.68 | G17: 0
A18: GT19 | B18: CODE | C18: Ensaio: LIMITE DE PLASTICIDADE | D18: und | F18: 114.68 | G18: 0
A19: GT20 | B19: CODE | C19: Ensaio: GRANULOMETRIA POR PENEIRAMENTO | D19: und | F19: 131.27 | G19: 0
A20: GT21 | B20: CODE | C20: Ensaio: GRANULOMETRIA POR SEDIMENTAÇÃO | D20: und | F20: 395.54 | G20: 0
A21: GT22 | B21: CODE | C21: Ensaio: ENSAIO COMPACTAÇÃO PROCTOR NORMAL | D21: und | F21: 167.53 | G21: 0
A22: GT23 | B22: CODE | C22: Ensaio: MASSA ESPECIFICA REAL DOS GRÃOS | D22: und | F22: 113.72 | G22: 0
A23: GT28 | B23: CODE | C23: Ensaio: GRANULOMETRIA COMPARATIVA | D23: und | F23: 238.25 | G23: 0
A24: GT29 | B24: CODE | C24: Ensaio: CRUMB TEST | D24: und | F24: 88.31 | G24: 0
A25: GT30 | B25: CODE | C25: Ensaio: INFILTRAÇÃO | D25: und | F25: 238.25 | G25: 0
A26: GT31 | B26: CODE | C26: Ensaio: ENSAIO DE PERDA D'AGUA ( ESTÁGIOS) | D26: und | F26: 376.26 | G26: 0
A27: GT32 | B27: CODE | C27: Ensaio: ANÁLISE QUÍMICA DA AREIA | D27: und | F27: 478.89 | G27: 0
A28: GT33 | B28: CODE | C28: Ensaio: MINERALOGIA DA AREIA | D28: und | F28: 550.8 | G28: 0
A29: GT34 | B29: CODE | C29: Ensaio: MINERALOGIA | D29: und | F29: 550.8 | G29: 0
A30: GT37 | B30: CODE | C30: Ensaio: PERMEABILIDADE VERTICAL DE CARGA VARIAVEL | D30: und | F30: 677.49 | G30: 0
A31: GT39 | B31: CODE | C31: Ensaio: PERMEABILIDADE "IN SITU" | D31: und | F31: 531.73 | G31: 0
A39: TOTAL SERVIÇOS GEOTÉCNICOS | G39: =SUM(G9:G38) -> 0
A40: LEGENDA:
A41: Uni - unidade de medição do insumo;
A42: Qde - Quantidade do Insumo (não pode ocorrer alteração pela Licitante)
A43: PU - Preço Unitário (composições padrão da Codevasf, já incluso o FatorK)
A44: PT - Preço Total (incluído encargos, taxas e impostos) - PT = Qde x PU
A45: * atualizado com base na variação do índice setorial publicado na revista “Conjuntura Econômica” da Fundação Getúlio Vargas, correspondente à coluna 39 (Custo Nacional da Construção Civil) - Serviços de Consultoria; Data inicial: Jan/19 - Data final: mai/24.

Sheet PFP1.3_Amb (hidden)
A1: SERVIÇOS ANÁLISE AMBIENTAL - QUALIDADE DA ÁGUA DO MANANCIAL | G1: CODIGO:
G2: PFP-1.3
A3: NOME DA EMPRESA:
L4: Coluna 39 – Consultoria (Supervisão e Projetos)
A5: PROJETO: | E5: CONTRATANTE: | G5: =PFP!J7 -> BASE: | L5: 2021-07-01 | M5: 2023-07-01
A6: =PFP!A8 -> ADAPTAÇÃO DO PROJETO EXECUTIVO DO SISTEMA ADUTOR DE MARCOLÂNDIA-PI E DISTRITO DE SERRÂNIA (ARARIPINA-PE) | E6: CODEVASF 7ª/SR | G6: =PFP!J8 -> SICRO: abr/24 CODE: out/24* | L6: 251.077 | M6: 287.46 | N6: =ROUND(M6/L6,4) -> 1.1449
A7: Cod. | B7: Base | C7: Insumos | D7: Uni | E7: Qde | F7: Preço Unitário (PU) | G7: Preço Total (PT) | L7: Preço Unitário (PU) | M7: Preço Unitário (PU)
A8: AM01 | B8: PROP | C8: Alcalinidade Total | D8: un | E8: 2 | F8: 47.5 | G8: =ROUND(E8*F8,2) -> 95 | L8: 41.49 | M8: =ROUND(L8*$N$6,2) -> 47.5
A9: AM02 | B9: PROP | C9: Condutividade | D9: un | E9: 2 | F9: 48.29 | G9: =ROUND(E9*F9,2) -> 96.58 | L9: 42.18 | M9: =ROUND(L9*$N$6,2) -> 48.29
A10: AM03 | B10: PROP | C10: DBO | D10: un | E10: 2 | F10: 46.56 | G10: 93.12 | L10: 40.67 | M10: 46.56
A11: AM04 | B11: PROP | C11: DQO | D11: un | E11: 2 | F11: 56.73 | G11: 113.46 | L11: 49.55 | M11: 56.73
A12: AM05 | B12: PROP | C12: Salinidade | D12: un | E12: 2 | F12: 53.46 | G12: 106.92 | L12: 46.69 | M12: 53.46
A13: AM06 | B13: PROP | C13: Sólidos Dissolvidos Totais | D13: un | E13: 2 | F13: 39.51 | G13: 79.02 | L13: 34.51 | M13: 39.51
A14: AM07 | B14: PROP | C14: Sólidos Suspensos | D14: un | E14: 2 | F14: 43.13 | G14: 86.26 | L14: 37.67 | M14: 43.13
A15: AM08 | B15: PROP | C15: Sólidos Totais | D15: un | E15: 2 | F15: 39.51 | G15: 79.02 | L15: 34.51 | M15: 39.51
A16: AM09 | B16: PROP | C16: Turbidez | D16: un | E16: 2 | F16: 29.42 | G16: 58.84 | L16: 25.7 | M16: 29.42
A17: AM10 | B17: PROP | C17: Oxigênio Dissolvido | D17: un | E17: 2 | F17: 46.57 | G17: 93.14 | L17: 40.68 | M17: 46.57
A18: AM11 | B18: PROP | C18: pH | D18: un | E18: 2 | F18: 27.4 | G18: 54.8 | L18: 23.93 | M18: 27.4
A19: AM12 | B19: PROP | C19: Temperatura | D19: un | E19: 2 | F19: 27.25 | G19: 54.5 | L19: 23.8 | M19: 27.25
A20: AM13 | B20: PROP | C20: Fósforo Total | D20: un | E20: 2 | F20: 52.63 | G20: 105.26 | L20: 45.97 | M20: 52.63
A21: AM14 | B21: PROP | C21: Nitrogênio Amoniacal | D21: un | E21: 2 | F21: 55.83 | G21: 111.66 | L21: 48.76 | M21: 55.83
A22: AM15 | B22: PROP | C22: Nitrogênio Nitrato | D22: un | E22: 2 | F22: 41.51 | G22: 83.02 | L22: 36.26 | M22: 41.51
A23: AM16 | B23: PROP | C23: Nitrogênio Total | D23: un | E23: 2 | F23: 48.73 | G23: 97.46 | L23: 42.56 | M23: 48.73
A24: AM17 | B24: PROP | C24: Clorofila A | D24: un | E24: 2 | F24: 138.9 | G24: 277.8 | L24: 121.32 | M24: 138.9
A25: AM18 | B25: PROP | C25: Coliformes Termotolerantes | D25: un | E25: 2 | F25: 39.08 | G25: 78.16 | L25: 34.13 | M25: 39.08
A26: AM19 | B26: PROP | C26: Metais Pesados | D26: un | E26: 2 | F26: 194.48 | G26: 388.96 | L26: 169.87 | M26: 194.48
A27: AM20 | B27: PROP | C27: Organoclorados | D27: un | E27: 2 | F27: 103.69 | G27: 207.38 | L27: 90.57 | M27: 103.69
A28: AM21 | B28: PROP | C28: Organofosforado | D28: un | E28: 2 | F28: 91.89 | G28: 183.78 | L28: 80.26 | M28: 91.89
A29: TOTAL SERVIÇOS GEOTÉCNICOS | G29: =SUM(G8:G27) -> 2360.36
A30: LEGENDA:
A31: Uni - unidade de medição do insumo;
A32: Qde - Quantidade do Insumo (não pode ocorrer alteração pela Licitante)
A33: PU - Preço Unitário (composições padrão da Codevasf, já incluso o FatorK)
A34: PT - Preço Total (incluído encargos, taxas e impostos) - PT = Qde x PU
A35: * atualizado com base na variação do índice setorial publicado na revista “Conjuntura Econômica” da Fundação Getúlio Vargas, correspondente à coluna 39 (Custo Nacional da Construção Civil) - Serviços de Consultoria; Data inicial: Jul/21 - Data final: jul/23.

Sheet PFP2.1_FatorKa
A1: DETALHAMENTO DOS ENCARGOS SOCIAIS: Ka | F1: CODIGO:
F2: PFP-2.1
A3: =PFP!A3 -> ADAPTAÇÃO DO PROJETO EXECUTIVO DO SISTEMA ADUTOR DE MARCOLÂNDIA-PI E DISTRITO DE SERRÂNIA (ARARIPINA-PE)
A4: NOME DA CONSULTORA:
A6: PROJETO: | C6: CONTRATANTE: | F6: =PFP!J7 -> BASE:
A7: =PFP!A8 -> ADAPTAÇÃO DO PROJETO EXECUTIVO DO SISTEMA ADUTOR DE MARCOLÂNDIA-PI E DISTRITO DE SERRÂNIA (ARARIPINA-PE) | C7: =PFP!F8 -> CODEVASF (7SR) | F7: =CONCATENATE(PFP!J8,"E.S. = SINAPI - PI") -> SICRO: abr/24 CODE: out/24* E.S. = SINAPI - PI
A8: Cod | B8: DESCRIÇÃO | E8: % | F8: R$
A9: A | B9: ENCARGOS SOCIAIS BÁSICOS | E9: =ROUND(SUM(E10:E18),4) -> 0.368 | F9: =ROUND(E9*SUMIF(PFP!$B$10:$B$18,"MO1",PFP!$J$10:$J$18),2) -> 14916.08
A10: A1 | B10: INSS | E10: 0.2 | F10: =ROUND(E10*SUMIF(PFP!$B$10:$B$18,"MO1",PFP!$J$10:$J$18),2) -> 8106.57
A11: A2 | B11: SESI | E11: 0.015 | F11: =ROUND(E11*SUMIF(PFP!$B$10:$B$18,"MO1",PFP!$J$10:$J$18),2) -> 607.99
A12: A3 | B12: SENAI | E12: 0.01 | F12: =ROUND(E12*SUMIF(PFP!$B$10:$B$18,"MO1",PFP!$J$10:$J$18),2) -> 405.33
A13: A4 | B13: INCRA | E13: 0.002 | F13: =ROUND(E13*SUMIF(PFP!$B$10:$B$18,"MO1",PFP!$J$10:$J$18),2) -> 81.07
A14: A5 | B14: SEBRAE | E14: 0.006 | F14: =ROUND(E14*SUMIF(PFP!$B$10:$B$18,"MO1",PFP!$J$10:$J$18),2) -> 243.2
A15: A6 | B15: Salário Educação | E15: 0.025 | F15: =ROUND(E15*SUMIF(PFP!$B$10:$B$18,"MO1",PFP!$J$10:$J$18),2) -> 1013.32
A16: A7 | B16: Seguro Contra Acidentes de Trabalho | E16: 0.03 | F16: =ROUND(E16*SUMIF(PFP!$B$10:$B$18,"MO1",PFP!$J$10:$J$18),2) -> 1215.98
A17: A8 | B17: FGTS | E17: 0.08 | F17: =ROUND(E17*SUMIF(PFP!$B$10:$B$18,"MO1",PFP!$J$10:$J$18),2) -> 3242.63
A18: A9 | B18: SECONCI | E18: 0 | F18: =ROUND(E18*SUMIF(PFP!$B$10:$B$18,"MO1",PFP!$J$10:$J$18),2) -> 0
A19: B | B19: ENCARGOS SOCIAIS QUE RECEBEM INCIDÊNCIA DE "A" | E19: =ROUND(SUM(E22:E29),4) -> 0.2002 | F19: =ROUND(E19*SUMIF(PFP!$B$10:$B$18,"MO1",PFP!$J$10:$J$18),2) -> 8114.67
A20: B1 | B20: Repouso Semanal Remunerado | E20: 0 | F20: =ROUND(E20*SUMIF(PFP!$B$10:$B$18,"MO1",PFP!$J$10:$J$18),2) -> 0
A21: B2 | B21: Feriados | E21: 0 | F21: =ROUND(E21*SUMIF(PFP!$B$10:$B$18,"MO1",PFP!$J$10:$J$18),2) -> 0
A22: B3 | B22: Auxílio Enfermidade | E22: 0.0064 | F22: =ROUND(E22*SUMIF(PFP!$B$10:$B$18,"MO1",PFP!$J$10:$J$18),2) -> 259.41
A23: B4 | B23: 13º Salário | E23: 0.0833 | F23: =ROUND(E23*SUMIF(PFP!$B$10:$B$18,"MO1",PFP!$J$10:$J$18),2) -> 3376.38
A24: B5 | B24: Licença Paternidade | E24: 0.0004 | F24: =ROUND(E24*SUMIF(PFP!$B$10:$B$18,"MO1",PFP!$J$10:$J$18),2) -> 16.21
A25: B6 | B25: Faltas Justificadas | E25: 0.0056 | F25: =ROUND(E25*SUMIF(PFP!$B$10:$B$18,"MO1",PFP!$J$10:$J$18),2) -> 226.98
A26: B7 | B26: Dias de Chuva | E26: 0 | F26: =ROUND(E26*SUMIF(PFP!$B$10:$B$18,"MO1",PFP!$J$10:$J$18),2) -> 0
A27: B8 | B27: Auxílio Acidente de Trabalho | E27: 0.0008 | F27: =ROUND(E27*SUMIF(PFP!$B$10:$B$18,"MO1",PFP!$J$10:$J$18),2) -> 32.43
A28: B9 | B28: Férias Gozadas | E28: 0.1034 | F28: =ROUND(E28*SUMIF(PFP!$B$10:$B$18,"MO1",PFP!$J$10:$J$18),2) -> 4191.09
A29: B10 | B29: Salário Maternidade | E29: 0.0003 | F29: =ROUND(E29*SUMIF(PFP!$B$10:$B$18,"MO1",PFP!$J$10:$J$18),2) -> 12.16
A30: C | B30: ENCARGOS SOCIAIS QUE NÃO RECEBEM INCIDÊNCIA DE "A" | E30: =ROUND(SUM(E31:E35),4) -> 0.0707 | F30: =ROUND(E30*SUMIF(PFP!$B$10:$B$18,"MO1",PFP!$J$10:$J$18),2) -> 2865.67
A31: C1 | B31: Aviso Prévio Indenizado | E31: 0.0403 | F31: =ROUND(E31*SUMIF(PFP!$B$10:$B$18,"MO1",PFP!$J$10:$J$18),2) -> 1633.47
A32: C2 | B32: Aviso Prévio Trabalhado | E32: 0.0009 | F32: =ROUND(E32*SUMIF(PFP!$B$10:$B$18,"MO1",PFP!$J$10:$J$18),2) -> 36.48
A33: C3 | B33: Férias Indenizadas | E33: 0.0072 | F33: =ROUND(E33*SUMIF(PFP!$B$10:$B$18,"MO1",PFP!$J$10:$J$18),2) -> 291.84
A34: C4 | B34: Depósito Rescisão Sem Justa Causa | E34: 0.0189 | F34: =ROUND(E34*SUMIF(PFP!$B$10:$B$18,"MO1",PFP!$J$10:$J$18),2) -> 766.07
A35: C5 | B35: Indenização Adicional | E35: 0.0034 | F35: =ROUND(E35*SUMIF(PFP!$B$10:$B$18,"MO1",PFP!$J$10:$J$18),2) -> 137.81
A36: D | B36: REINCIDÊNCIAS | E36: =ROUND(SUM(E37:E38),4) -> 0.0773 | F36: =ROUND(E36*SUMIF(PFP!$B$10:$B$18,"MO1",PFP!$J$10:$J$18),2) -> 3133.19
A37: D1 | B37: Reincidência de "A" sobre "B" | E37: =ROUND(E9*E19,4) -> 0.0737 | F37: =ROUND(E37*SUMIF(PFP!$B$10:$B$18,"MO1",PFP!$J$10:$J$18),2) -> 2987.27
A38: D2 | B38: Reincidência de "A" sobre Aviso Prévio Trabalhado e reincidência do FGTS sobre Aviso Prévio Indenizado | E38: =ROUND((E32*E9)+(E31*E17),4) -> 0.0036 | F38: =ROUND(E38*SUMIF(PFP!$B$10:$B$18,"MO1",PFP!$J$10:$J$18),2) -> 145.92
A39: K1 | B39: ENCARGOS SOCIAIS | E39: =ROUND(E9+E19+E30+E36,4) -> 0.7162 | F39: =ROUND(E39*SUMIF(PFP!$B$10:$B$18,"MO1",PFP!$J$10:$J$18),2) -> 29029.61
A40: Ka | B40: TAXA DE RESSARCIMENTO DE DESPESAS E ENCARGOS SOBRE MO1 | E40: =ROUND((1+E39+PFP3_FatorKd!E14)*(1+PFP3_FatorKd!E13)*(1+PFP3_FatorKd!E9),4) -> 2.3435
A41: OBSERVAÇÃO:
A42: 1 - DISCRIMINAR OS ENCARGOS SOCIAIS COM SEUS RESPECTIVOS PERCENTUAS TOTALIZANDO OS MESMOS.
A43: 2 - APLICAR O % TOTAL P/ CALCULAR OS E. SOCIAIS INCIDENTES NA MÃO-DE-OBRA COM VÍNCULO PERMANENTE
A44: Ka - Taxa de Ressarcimento de Despesas e Encargos sobre a Mão de Obra COM VINCULO (incide apenas no Insumo Codigo MO1)
A45: Ka = (1 + K1 + K2) x (1 + K3) x (1 + K4)

Sheet PFP2.2_FatorKb
A1: DETALHAMENTO DOS ENCARGOS SOCIAIS: Kb | F1: CODIGO:
F2: PFP-2.2
A3: =PFP!A3 -> ADAPTAÇÃO DO PROJETO EXECUTIVO DO SISTEMA ADUTOR DE MARCOLÂNDIA-PI E DISTRITO DE SERRÂNIA (ARARIPINA-PE)
A4: NOME DA CONSULTORA:
A6: PROJETO: | C6: CONTRATANTE: | F6: =PFP!J7 -> BASE:
A7: =PFP!A8 -> ADAPTAÇÃO DO PROJETO EXECUTIVO DO SISTEMA ADUTOR DE MARCOLÂNDIA-PI E DISTRITO DE SERRÂNIA (ARARIPINA-PE) | C7: =PFP!F8 -> CODEVASF (7SR) | F7: ='PFP2.1_FatorKa'!F7 -> SICRO: abr/24 CODE: out/24* E.S. = SINAPI - PI
A8: Cod | B8: DESCRIÇÃO | E8: % | F8: R$
A9: A | B9: ENCARGOS SOCIAIS BÁSICOS | E9: =ROUND(SUM(E10:E18),4) -> 0.2 | F9: =ROUND(E9*SUMIF(PFP!$B$10:$B$18,"MO2",PFP!$J$10:$J$18),2) -> 2490.33
A10: A1 | B10: INSS | E10: 0.2 | F10: =ROUND(E10*SUMIF(PFP!$B$10:$B$18,"MO2",PFP!$J$10:$J$18),2) -> 2490.33
A11: A2 | B11: SESI | E11: 0 | F11: =ROUND(E11*SUMIF(PFP!$B$10:$B$18,"MO2",PFP!$J$10:$J$18),2) -> 0
A12: A3 | B12: SENAI | E12: 0 | F12: =ROUND(E12*SUMIF(PFP!$B$10:$B$18,"MO2",PFP!$J$10:$J$18),2) -> 0
A13: A4 | B13: INCRA | E13: 0 | F13: =ROUND(E13*SUMIF(PFP!$B$10:$B$18,"MO2",PFP!$J$10:$J$18),2) -> 0
A14: A5 | B14: SEBRAE | E14: 0 | F14: =ROUND(E14*SUMIF(PFP!$B$10:$B$18,"MO2",PFP!$J$10:$J$18),2) -> 0
A15: A6 | B15: Salário Educação | E15: 0 | F15: =ROUND(E15*SUMIF(PFP!$B$10:$B$18,"MO2",PFP!$J$10:$J$18),2) -> 0
A16: A7 | B16: Seguro Contra Acidentes de Trabalho | E16: 0 | F16: =ROUND(E16*SUMIF(PFP!$B$10:$B$18,"MO2",PFP!$J$10:$J$18),2) -> 0
A17: A8 | B17: FGTS | E17: 0 | F17: =ROUND(E17*SUMIF(PFP!$B$10:$B$18,"MO2",PFP!$J$10:$J$18),2) -> 0
A18: A9 | B18: SECONCI | E18: 0 | F18: =ROUND(E18*SUMIF(PFP!$B$10:$B$18,"MO2",PFP!$J$10:$J$18),2) -> 0
A19: B | B19: ENCARGOS SOCIAIS QUE RECEBEM INCIDÊNCIA DE "A" | E19: =ROUND(SUM(E20:E29),4) -> 0 | F19: =ROUND(E19*SUMIF(PFP!$B$10:$B$18,"MO2",PFP!$J$10:$J$18),2) -> 0
A20: B1 | B20: Repouso Semanal Remunerado | E20: 0 | F20: =ROUND(E20*SUMIF(PFP!$B$10:$B$18,"MO2",PFP!$J$10:$J$18),2) -> 0
A21: B2 | B21: Feriados | E21: 0 | F21: =ROUND(E21*SUMIF(PFP!$B$10:$B$18,"MO2",PFP!$J$10:$J$18),2) -> 0
A22: B3 | B22: Auxílio Enfermidade | E22: 0 | F22: =ROUND(E22*SUMIF(PFP!$B$10:$B$18,"MO2",PFP!$J$10:$J$18),2) -> 0
A23: B4 | B23: 13º Salário | E23: 0 | F23: =ROUND(E23*SUMIF(PFP!$B$10:$B$18,"MO2",PFP!$J$10:$J$18),2) -> 0
A24: B5 | B24: Licença Paternidade | E24: 0 | F24: =ROUND(E24*SUMIF(PFP!$B$10:$B$18,"MO2",PFP!$J$10:$J$18),2) -> 0
A25: B6 | B25: Faltas Justificadas | E25: 0 | F25: =ROUND(E25*SUMIF(PFP!$B$10:$B$18,"MO2",PFP!$J$10:$J$18),2) -> 0
A26: B7 | B26: Dias de Chuva | E26: 0 | F26: =ROUND(E26*SUMIF(PFP!$B$10:$B$18,"MO2",PFP!$J$10:$J$18),2) -> 0
A27: B8 | B27: Auxílio Acidente de Trabalho | E27: 0 | F27: =ROUND(E27*SUMIF(PFP!$B$10:$B$18,"MO2",PFP!$J$10:$J$18),2) -> 0
A28: B9 | B28: Férias Gozadas | E28: 0 | F28: =ROUND(E28*SUMIF(PFP!$B$10:$B$18,"MO2",PFP!$J$10:$J$18),2) -> 0
A29: B10 | B29: Salário Maternidade | E29: 0 | F29: =ROUND(E29*SUMIF(PFP!$B$10:$B$18,"MO2",PFP!$J$10:$J$18),2) -> 0
A30: C | B30: ENCARGOS SOCIAIS QUE NÃO RECEBEM INCIDÊNCIA DE "A" | E30: =ROUND(SUM(E31:E35),4) -> 0 | F30: =ROUND(E30*SUMIF(PFP!$B$10:$B$18,"MO2",PFP!$J$10:$J$18),2) -> 0
A31: C1 | B31: Aviso Prévio Indenizado | E31: 0 | F31: =ROUND(E31*SUMIF(PFP!$B$10:$B$18,"MO2",PFP!$J$10:$J$18),2) -> 0
A32: C2 | B32: Aviso Prévio Trabalhado | E32: 0 | F32: =ROUND(E32*SUMIF(PFP!$B$10:$B$18,"MO2",PFP!$J$10:$J$18),2) -> 0
A33: C3 | B33: Férias Indenizadas | E33: 0 | F33: =ROUND(E33*SUMIF(PFP!$B$10:$B$18,"MO2",PFP!$J$10:$J$18),2) -> 0
A34: C4 | B34: Depósito Rescisão Sem Justa Causa | E34: 0 | F34: =ROUND(E34*SUMIF(PFP!$B$10:$B$18,"MO2",PFP!$J$10:$J$18),2) -> 0
A35: C5 | B35: Indenização Adicional | E35: 0 | F35: =ROUND(E35*SUMIF(PFP!$B$10:$B$18,"MO2",PFP!$J$10:$J$18),2) -> 0
A36: D | B36: REINCIDÊNCIAS | E36: =ROUND(SUM(E37:E38),4) -> 0 | F36: =ROUND(E36*SUMIF(PFP!$B$10:$B$18,"MO2",PFP!$J$10:$J$18),2) -> 0
A37: D1 | B37: Reincidência de "A" sobre "B" | E37: =ROUND(E9*E19,4) -> 0 | F37: =ROUND(E37*SUMIF(PFP!$B$10:$B$18,"MO2",PFP!$J$10:$J$18),2) -> 0
A38: D2 | B38: Reincidência de "A" sobre Aviso Prévio Trabalhado e reincidência do FGTS sobre Aviso Prévio Indenizado | E38: =ROUND(E9*E32,4)+ROUND(E31*E12,4) -> 0 | F38: =ROUND(E38*SUMIF(PFP!$B$10:$B$18,"MO2",PFP!$J$10:$J$18),2) -> 0
A39: K1 | B39: ENCARGOS SOCIAIS | E39: =ROUND(E9+E19+E30+E36,4) -> 0.2 | F39: =ROUND(E39*SUMIF(PFP!$B$10:$B$18,"MO2",PFP!$J$10:$J$18),2) -> 2490.33
A40: Kb | B40: TAXA DE RESSARCIMENTO DE DESPESAS E ENCARGOS SOBRE MO2 | E40: =ROUND((1+E39+PFP3_FatorKd!E14)*(1+PFP3_FatorKd!E13)*(1+PFP3_FatorKd!E9),4) -> 1.6953
A41: OBSERVAÇÃO:
A42: 1 - DISCRIMINAR OS ENCARGOS SOCIAIS COM SEUS RESPECTIVOS PERCENTUAS TOTALIZANDO OS MESMOS.
A43: 2 - APLICAR O % TOTAL P/ CALCULAR OS E. SOCIAIS INCIDENTES NA MÃO-DE-OBRA SEM VÍNCULO PERMANENTE
A44: Kb - Taxa de Ressarcimento de Despesas e Encargos sobre a Mão de Obra SEM VINCULO (incide apenas no Insumo Codigo MO2)
A45: Kb = (1 + K1 + K2) x (1 + K3) x (1 + K4)

Sheet PFP2.3_FatorKc
A1: DETALHAMENTO DOS ENCARGOS SOCIAIS: Kc | F1: CODIGO:
F2: PFP-2.3
A3: =PFP!A3 -> ADAPTAÇÃO DO PROJETO EXECUTIVO DO SISTEMA ADUTOR DE MARCOLÂNDIA-PI E DISTRITO DE SERRÂNIA (ARARIPINA-PE)
A4: NOME DA CONSULTORA:
A6: PROJETO: | C6: CONTRATANTE: | F6: =PFP!J7 -> BASE:
A7: =PFP!A8 -> ADAPTAÇÃO DO PROJETO EXECUTIVO DO SISTEMA ADUTOR DE MARCOLÂNDIA-PI E DISTRITO DE SERRÂNIA (ARARIPINA-PE) | C7: =PFP!F8 -> CODEVASF (7SR) | F7: ='PFP2.1_FatorKa'!F7 -> SICRO: abr/24 CODE: out/24* E.S. = SINAPI - PI
A8: Cod | B8: DESCRIÇÃO | E8: % | F8: R$
A9: A | B9: ENCARGOS SOCIAIS BÁSICOS | E9: =ROUND(SUM(E10:E18),4) -> 0 | F9: =ROUND(E9*SUMIF(PFP!$B$10:$B$18,"MO3",PFP!$J$10:$J$18),2) -> 0
A10: A1 | B10: INSS | E10: 0 | F10: =ROUND(E10*SUMIF(PFP!$B$10:$B$18,"MO3",PFP!$J$10:$J$18),2) -> 0
A11: A2 | B11: SESI | E11: 0 | F11: =ROUND(E11*SUMIF(PFP!$B$10:$B$18,"MO3",PFP!$J$10:$J$18),2) -> 0
A12: A3 | B12: SENAI | E12: 0 | F12: =ROUND(E12*SUMIF(PFP!$B$10:$B$18,"MO3",PFP!$J$10:$J$18),2) -> 0
A13: A4 | B13: INCRA | E13: 0 | F13: =ROUND(E13*SUMIF(PFP!$B$10:$B$18,"MO3",PFP!$J$10:$J$18),2) -> 0
A14: A5 | B14: SEBRAE | E14: 0 | F14: =ROUND(E14*SUMIF(PFP!$B$10:$B$18,"MO3",PFP!$J$10:$J$18),2) -> 0
A15: A6 | B15: Salário Educação | E15: 0 | F15: =ROUND(E15*SUMIF(PFP!$B$10:$B$18,"MO3",PFP!$J$10:$J$18),2) -> 0
A16: A7 | B16: Seguro Contra Acidentes de Trabalho | E16: 0 | F16: =ROUND(E16*SUMIF(PFP!$B$10:$B$18,"MO3",PFP!$J$10:$J$18),2) -> 0
A17: A8 | B17: FGTS | E17: 0 | F17: =ROUND(E17*SUMIF(PFP!$B$10:$B$18,"MO3",PFP!$J$10:$J$18),2) -> 0
A18: A9 | B18: SECONCI | E18: 0 | F18: =ROUND(E18*SUMIF(PFP!$B$10:$B$18,"MO3",PFP!$J$10:$J$18),2) -> 0
A19: B | B19: ENCARGOS SOCIAIS QUE RECEBEM INCIDÊNCIA DE "A" | E19: =ROUND(SUM(E20:E29),4) -> 0 | F19: =ROUND(E19*SUMIF(PFP!$B$10:$B$18,"MO3",PFP!$J$10:$J$18),2) -> 0
A20: B1 | B20: Repouso Semanal Remunerado | E20: 0 | F20: =ROUND(E20*SUMIF(PFP!$B$10:$B$18,"MO3",PFP!$J$10:$J$18),2) -> 0
A21: B2 | B21: Feriados | E21: 0 | F21: =ROUND(E21*SUMIF(PFP!$B$10:$B$18,"MO3",PFP!$J$10:$J$18),2) -> 0
A22: B3 | B22: Auxílio Enfermidade | E22: 0 | F22: =ROUND(E22*SUMIF(PFP!$B$10:$B$18,"MO3",PFP!$J$10:$J$18),2) -> 0
A23: B4 | B23: 13º Salário | E23: 0 | F23: =ROUND(E23*SUMIF(PFP!$B$10:$B$18,"MO3",PFP!$J$10:$J$18),2) -> 0
A24: B5 | B24: Licença Paternidade | E24: 0 | F24: =ROUND(E24*SUMIF(PFP!$B$10:$B$18,"MO3",PFP!$J$10:$J$18),2) -> 0
A25: B6 | B25: Faltas Justificadas | E25: 0 | F25: =ROUND(E25*SUMIF(PFP!$B$10:$B$18,"MO3",PFP!$J$10:$J$18),2) -> 0
A26: B7 | B26: Dias de Chuva | E26: 0 | F26: =ROUND(E26*SUMIF(PFP!$B$10:$B$18,"MO3",PFP!$J$10:$J$18),2) -> 0
A27: B8 | B27: Auxílio Acidente de Trabalho | E27: 0 | F27: =ROUND(E27*SUMIF(PFP!$B$10:$B$18,"MO3",PFP!$J$10:$J$18),2) -> 0
A28: B9 | B28: Férias Gozadas | E28: 0 | F28: =ROUND(E28*SUMIF(PFP!$B$10:$B$18,"MO3",PFP!$J$10:$J$18),2) -> 0
A29: B10 | B29: Salário Maternidade | E29: 0 | F29: =ROUND(E29*SUMIF(PFP!$B$10:$B$18,"MO3",PFP!$J$10:$J$18),2) -> 0
A30: C | B30: ENCARGOS SOCIAIS QUE NÃO RECEBEM INCIDÊNCIA DE "A" | E30: =ROUND(SUM(E31:E35),4) -> 0 | F30: =ROUND(E30*SUMIF(PFP!$B$10:$B$18,"MO3",PFP!$J$10:$J$18),2) -> 0
A31: C1 | B31: Aviso Prévio Indenizado | E31: 0 | F31: =ROUND(E31*SUMIF(PFP!$B$10:$B$18,"MO3",PFP!$J$10:$J$18),2) -> 0
A32: C2 | B32: Aviso Prévio Trabalhado | E32: 0 | F32: =ROUND(E32*SUMIF(PFP!$B$10:$B$18,"MO3",PFP!$J$10:$J$18),2) -> 0
A33: C3 | B33: Férias Indenizadas | E33: 0 | F33: =ROUND(E33*SUMIF(PFP!$B$10:$B$18,"MO3",PFP!$J$10:$J$18),2) -> 0
A34: C4 | B34: Depósito Rescisão Sem Justa Causa | E34: 0 | F34: =ROUND(E34*SUMIF(PFP!$B$10:$B$18,"MO3",PFP!$J$10:$J$18),2) -> 0
A35: C5 | B35: Indenização Adicional | E35: 0 | F35: =ROUND(E35*SUMIF(PFP!$B$10:$B$18,"MO3",PFP!$J$10:$J$18),2) -> 0
A36: D | B36: REINCIDÊNCIAS | E36: =ROUND(SUM(E37:E38),4) -> 0 | F36: =ROUND(E36*SUMIF(PFP!$B$10:$B$18,"MO3",PFP!$J$10:$J$18),2) -> 0
A37: D1 | B37: Reincidência de "A" sobre "B" | E37: =ROUND(E9*E19,4) -> 0 | F37: =ROUND(E37*SUMIF(PFP!$B$10:$B$18,"MO3",PFP!$J$10:$J$18),2) -> 0
A38: D2 | B38: Reincidência de "A" sobre Aviso Prévio Trabalhado e reincidência do FGTS sobre Aviso Prévio Indenizado | E38: =ROUND(E9*E32,4)+ROUND(E31*E12,4) -> 0 | F38: =ROUND(E38*SUMIF(PFP!$B$10:$B$18,"MO3",PFP!$J$10:$J$18),2) -> 0
A39: K1 | B39: ENCARGOS SOCIAIS | E39: =ROUND(E9+E19+E30+E36,4) -> 0 | F39: =ROUND(E39*SUMIF(PFP!$B$10:$B$18,"MO3",PFP!$J$10:$J$18),2) -> 0
A40: Kc | B40: TAXA DE RESSARCIMENTO DE DESPESAS E ENCARGOS SOBRE MO2 | E40: =ROUND((1+E39+PFP3_FatorKd!E14)*(1+PFP3_FatorKd!E13)*(1+PFP3_FatorKd!E9),4) -> 1.4441
A41: OBSERVAÇÃO:
A42: 1 - DISCRIMINAR OS ENCARGOS SOCIAIS COM SEUS RESPECTIVOS PERCENTUAS TOTALIZANDO OS MESMOS.
A43: 2 - APLICAR O % TOTAL P/ CALCULAR OS E. SOCIAIS INCIDENTES NA MÃO-DE-OBRA DE SOCIETÁRIOS
A44: Kc - Taxa de Ressarcimento de Despesas e Encargos sobre a Mão de Obra SOCIETÁRIA (incide apenas no Insumo Codigo MO3)
A45: Kc = (1 + K1 + K2) x (1 + K3) x (1 + K4)

Sheet PFP3_FatorKd
A1: DESPESAS FISCAIS E CUSTOS DIVERSOS: Kd | F1: CODIGO:
F2: PFP-3
A3: =PFP!A3 -> ADAPTAÇÃO DO PROJETO EXECUTIVO DO SISTEMA ADUTOR DE MARCOLÂNDIA-PI E DISTRITO DE SERRÂNIA (ARARIPINA-PE)
A4: NOME DA CONSULTORA:
A6: PROJETO: | C6: CONTRATANTE: | F6: =PFP!J7 -> BASE:
A7: =PFP!A8 -> ADAPTAÇÃO DO PROJETO EXECUTIVO DO SISTEMA ADUTOR DE MARCOLÂNDIA-PI E DISTRITO DE SERRÂNIA (ARARIPINA-PE) | C7: CODEVASF (SEDE) | F7: =PFP!J8 -> SICRO: abr/24 CODE: out/24*
A8: Cod | B8: DESCRIÇÃO1 | D8: % preço2 | E8: % custo4 | F8: R$
A9: K4 | B9: TAXAS E IMPOSTOS | D9: =ROUND(D10+D11+D12,4) -> 0.124 | E9: =ROUND(E10+E11+E12,4) -> 0.1416 | F9: =E9*SUM(SUMIF(PFP!$B$10:$B$18,"MO1",PFP!$J$10:$J$18)*(1+'PFP2.1_FatorKa'!$E$39)+SUMIF(PFP!$B$10:$B$18,"MO2",PFP!$J$10:$J$18)*(1+'PFP2.2_FatorKb'!$E$39)+SUMIF(PFP!$B$10:$B$18,"<>MO*",PFP!$J$10:$J$18)+$F$14+$F$13) -> 15171.59079
A10: K4.1 | B10: ISS | D10: 0.05 | E10: =ROUND((1/(1-$D$9))*D10,4) -> 0.0571 | F10: =E10*SUM(SUMIF(PFP!$B$10:$B$18,"MO1",PFP!$J$10:$J$18)*(1+'PFP2.1_FatorKa'!$E$39)+SUMIF(PFP!$B$10:$B$18,"MO2",PFP!$J$10:$J$18)*(1+'PFP2.2_FatorKb'!$E$39)+SUMIF(PFP!$B$10:$B$18,"<>MO*",PFP!$J$10:$J$18)+$F$14+$F$13) -> 6117.922556
A11: K4.2 | B11: PIS3 - aliquota efetiva com percentual-desconto | D11: =ROUND(1.65%*0.8,4) -> 0.0132 | E11: =ROUND((1/(1-$D$9))*D11,4) -> 0.0151 | F11: =E11*SUM(SUMIF(PFP!$B$10:$B$18,"MO1",PFP!$J$10:$J$18)*(1+'PFP2.1_FatorKa'!$E$39)+SUMIF(PFP!$B$10:$B$18,"MO2",PFP!$J$10:$J$18)*(1+'PFP2.2_FatorKb'!$E$39)+SUMIF(PFP!$B$10:$B$18,"<>MO*",PFP!$J$10:$J$18)+$F$14+$F$13) -> 1617.874441
A12: K4.3 | B12: COFINS3 - aliquota efetiva com percentual-desconto | D12: =ROUND(7.6%*0.8,4) -> 0.0608 | E12: =ROUND((1/(1-$D$9))*D12,4) -> 0.0694 | F12: =E12*SUM(SUMIF(PFP!$B$10:$B$18,"MO1",PFP!$J$10:$J$18)*(1+'PFP2.1_FatorKa'!$E$39)+SUMIF(PFP!$B$10:$B$18,"MO2",PFP!$J$10:$J$18)*(1+'PFP2.2_FatorKb'!$E$39)+SUMIF(PFP!$B$10:$B$18,"<>MO*",PFP!$J$10:$J$18)+$F$14+$F$13) -> 7435.79379
A13: K3 | B13: REMUNERAÇÃO DA EMPRESA (LUCRO) | E13: 0.1 | F13: =E13*SUM(SUMIF(PFP!$B$10:$B$18,"MO1",PFP!$J$10:$J$18)*(1+'PFP2.1_FatorKa'!$E$39)+SUMIF(PFP!$B$10:$B$18,"MO2",PFP!$J$10:$J$18)*(1+'PFP2.2_FatorKb'!$E$39)+SUMIF(PFP!$B$10:$B$18,"<>MO*",PFP!$J$10:$J$18)+$F$14) -> 9740.363885
A14: K2 | B14: CUSTOS DA ADMINISTRAÇÃO CENTRAL | E14: =ROUND(SUM(E15:E17),4) -> 0.15 | F14: =ROUND(E14*SUMIF(PFP!$B$10:$B$18,"MO*",PFP!$J$10:$J$18),2) -> 8590.87
A15: K2.1 | B15: Custos da administração central da empresa (diretoria, pessoal técnico de apoio e pessoal administrativo não diretamente vinculado à prestação dos serviços) | E15: 0.1 | F15: =ROUND(E15*SUMIF(PFP!$B$10:$B$18,"MO*",PFP!$J$10:$J$18),2) -> 5727.25
A16: K2.2 | B16: Outras despesas que afetam o custo de produção como treinamento, biblioteca, programa de qualidade, programa de benefícios, auditoria interna e externa | E16: 0.03 | F16: =ROUND(E16*SUMIF(PFP!$B$10:$B$18,"MO*",PFP!$J$10:$J$18),2) -> 1718.17
A17: K2.3 | B17: Despesas fixas e variaveis com patrimônio, aluguéis, comunicação, manutenção e transporte não diretamente relacionados com o custo direto dos serviços | E17: 0.02 | F17: =ROUND(E17*SUMIF(PFP!$B$10:$B$18,"MO*",PFP!$J$10:$J$18),2) -> 1145.45
A18: Kd | B18: TAXA RESSARCIMENTO DE DESPESAS SOBRE CUSTOS DIVERSOS | E18: =ROUND((1+E13)*(1+E9),4) -> 1.2558
A19: NOME DO INFORMANTE: | E19: QUALIFICAÇÃO:
A21: ASSINATURA: | E21: DATA:
A23: Observação:
A24: 1 - RELACIONAR OS CUSTOS DE ADMINISTRAÇÃO COM RESPECTIVOS PERCENTUAIS INCIDENTES NA MÃO -DE-OBRA
A25: 1 - DISCRIMINAR OS TRIBUTOS QUE INCIDEM SOBRE OS CUSTOS DA PRESTAÇÃO DOS SERVIÇOS
A26: 2 - K4 = INDICAR % DE CADA TRIBUTO E A SOMA DOS MESMOS (ex: ISS 5% + PIS 1,65% + COFINS 7,60% = 14,25%)
A27: 3 - PIS e COFINS, Regime de Incidencia Acumulativa (0,65% e 3,00% - sem percentual de desconto) ou em Regime de Incidencia Não Acumulativa (1,65% e 7,60% - aplicável percentual de desconto) de acordo com a forma de apuração do lucro no IRPJ. APRESENTAR COMPROVANTES de aproveitamento de créditos tributários dos últimos 12 meses em caso de aplicação de "percentual de desconto".
A28: 4 - AS DESPESAS FISCAIS (K4) INCIDEM SOBRE O TOTAL DA FATURA E NÃO SOBRE OS CUSTOS INCORRIDOS,
A29: DEVENDO SER CALCULADO O K4' APLICANDO-SE A SEGUINTE FÓRMULA:
A30: K4' = { [ 1 / ( 1 - K4) ] - 1 } x 100
A31: K4' = { [ 1 / ( 1 - 0,124 ) ] - 1 } x 100
A32: Kd - Taxa de Ressarcimento de Despesas sobre Custos Diversos (incide sobre os Insumos Codigo DP e EM)
A33: Kd = (1 + K3) x (1 + K4)
A34: K2 - Incide sobre o Custo Total (CT) da Mão de Obra (MO* = MO1 + MO2)
A35: K3 - Incide sobre o Custo Total (CT) Mão de Obra com encargos (MO1 x Ka ou MO2 x Kb), demais Custos (DP e EM), e Custos da Administração Central (K2)
A36: K4 - Incide sobre o Custo Total (CT) Mão de Obra com encargos (MO1 x Ka ou MO2 x Kb), demais Custos (DP e EM), e Custos da Administração Central (K2) e Lucro (K3)

Sheet CRO1_Ins-Pro
A1: INSUMOS POR ETAPA/PRODUTO | O1: CODIGO:
O2: CRO-1
A3: =PFP!A3 -> ADAPTAÇÃO DO PROJETO EXECUTIVO DO SISTEMA ADUTOR DE MARCOLÂNDIA-PI E DISTRITO DE SERRÂNIA (ARARIPINA-PE)
A4: Cod. | B4: Categoria / Insumo | C4: Uni | D4: Qde | E4: CUD | F4: PU | G4: FatorK | H4: Meses
H5: 1 | I5: 2 | J5: 3 | K5: 4 | L5: 5 | M5: 6 | N5: 7 | O5: 8 | P5: 9 | Q5: 10 | R5: 11 | S5: 12
A6: C | B6: =VLOOKUP(A6,PFP!$C$9:$K$18,2,FALSE) -> Engenheiro consultor especial - P8060 | C6: =VLOOKUP(A6,PFP!$C$9:$K$18,3,FALSE) -> mês | D6: =SUM(H6:S6) -> 0.2 | E6: =VLOOKUP(A6,PFP!$C$9:$K$18,5,FALSE) -> 21440.03 | F6: =VLOOKUP(A6,PFP!$C$9:$K$18,6,FALSE) -> 30961.55 | G6: =VLOOKUP(A6,PFP!$C$9:$K$18,7,FALSE) -> 1.4441 | M6: 0.1 | N6: 0.1
A7: P0 | B7: =VLOOKUP(A7,PFP!$C$9:$K$18,2,FALSE) -> Engenheiro de projetos sênior - P8067 | C7: =VLOOKUP(A7,PFP!$C$9:$K$18,3,FALSE) -> mês | D7: =SUM(H7:S7) -> 0.8 | E7: =VLOOKUP(A7,PFP!$C$9:$K$18,5,FALSE) -> 15564.54 | F7: =VLOOKUP(A7,PFP!$C$9:$K$18,6,FALSE) -> 26386.56 | G7: =VLOOKUP(A7,PFP!$C$9:$K$18,7,FALSE) -> 1.6953 | M7: 0.15 | N7: 0.15 | O7: 0.1 | P7: 0.1 | Q7: 0.15 | R7: 0.15
A8: P1 | B8: =VLOOKUP(A8,PFP!$C$9:$K$18,2,FALSE) -> Engenheiro de projetos pleno - P8066 | C8: =VLOOKUP(A8,PFP!$C$9:$K$18,3,FALSE) -> mês | D8: 1.7 | E8: =VLOOKUP(A8,PFP!$C$9:$K$18,5,FALSE) -> 12379.96 | F8: =VLOOKUP(A8,PFP!$C$9:$K$18,6,FALSE) -> 29012.44 | G8: =VLOOKUP(A8,PFP!$C$9:$K$18,7,FALSE) -> 2.3435 | H8: 0.1 | I8: 0.1 | J8: 0.1 | K8: 0.1 | L8: 0.1 | M8: 0.2 | N8: 0.2 | O8: 0.15 | P8: 0.15 | Q8: 0.2 | R8: 0.2 | S8: 0.1
A9: P3 | B9: =VLOOKUP(A9,PFP!$C$9:$K$18,2,FALSE) -> Engenheiro de projetos júnior - P8065 | C9: =VLOOKUP(A9,PFP!$C$9:$K$18,3,FALSE) -> mês | D9: 1.4 | E9: =VLOOKUP(A9,PFP!$C$9:$K$18,5,FALSE) -> 12002 | F9: =VLOOKUP(A9,PFP!$C$9:$K$18,6,FALSE) -> 28126.69 | G9: =VLOOKUP(A9,PFP!$C$9:$K$18,7,FALSE) -> 2.3435 | H9: 0.1 | I9: 0.1 | J9: 0.1 | K9: 0.1 | L9: 0.1 | M9: 0.15 | N9: 0.15 | O9: 0.1 | P9: 0.1 | Q9: 0.15 | R9: 0.15 | S9: 0.1
A10: T2 | B10: =VLOOKUP(A10,PFP!$C$9:$K$18,2,FALSE) -> Técnico de obras - P8147 | C10: =VLOOKUP(A10,PFP!$C$9:$K$18,3,FALSE) -> mês | D10: 0.65 | E10: =VLOOKUP(A10,PFP!$C$9:$K$18,5,FALSE) -> 3167.62 | F10: =VLOOKUP(A10,PFP!$C$9:$K$18,6,FALSE) -> 7423.32 | G10: =VLOOKUP(A10,PFP!$C$9:$K$18,7,FALSE) -> 2.3435 | J10: 0.15 | M10: 0.1 | N10: 0.1 | O10: 0.05 | P10: 0.05 | Q10: 0.1 | R10: 0.1
A11: A0 | B11: =VLOOKUP(A11,PFP!$C$9:$K$18,2,FALSE) -> Secretária - P8135 | C11: =VLOOKUP(A11,PFP!$C$9:$K$18,3,FALSE) -> mês | D11: 0.24 | E11: =VLOOKUP(A11,PFP!$C$9:$K$18,5,FALSE) -> 2604.78 | F11: =VLOOKUP(A11,PFP!$C$9:$K$18,6,FALSE) -> 6104.3 | G11: =VLOOKUP(A11,PFP!$C$9:$K$18,7,FALSE) -> 2.3435 | H11: 0.02 | I11: 0.02 | J11: 0.02 | K11: 0.02 | L11: 0.02 | M11: 0.02 | N11: 0.02 | O11: 0.02 | P11: 0.02 | Q11: 0.02 | R11: 0.02 | S11: 0.02
A12: V1 | B12: =VLOOKUP(A12,PFP!$C$9:$K$18,2,FALSE) -> Diárias | C12: =VLOOKUP(A12,PFP!$C$9:$K$18,3,FALSE) -> dia | D12: 4 | E12: =VLOOKUP(A12,PFP!$C$9:$K$18,5,FALSE) -> 353.39 | F12: =VLOOKUP(A12,PFP!$C$9:$K$18,6,FALSE) -> 443.79 | G12: =VLOOKUP(A12,PFP!$C$9:$K$18,7,FALSE) -> 1.2558 | J12: 4
A13: V3 | B13: =VLOOKUP(A13,PFP!$C$9:$K$18,2,FALSE) -> Aluguel de mini Pick-up | C13: =VLOOKUP(A13,PFP!$C$9:$K$18,3,FALSE) -> dia | D13: 3 | E13: =VLOOKUP(A13,PFP!$C$9:$K$18,5,FALSE) -> 427.04 | F13: =VLOOKUP(A13,PFP!$C$9:$K$18,6,FALSE) -> 536.28 | G13: =VLOOKUP(A13,PFP!$C$9:$K$18,7,FALSE) -> 1.2558 | J13: 3
A14: V4 | B14: =VLOOKUP(A14,PFP!$C$9:$K$18,2,FALSE) -> Passagens Aéreas (ida e volta) | C14: =VLOOKUP(A14,PFP!$C$9:$K$18,3,FALSE) -> un | D14: 1 | E14: =VLOOKUP(A14,PFP!$C$9:$K$18,5,FALSE) -> 1613.69 | F14: =VLOOKUP(A14,PFP!$C$9:$K$18,6,FALSE) -> 2026.47 | G14: =VLOOKUP(A14,PFP!$C$9:$K$18,7,FALSE) -> 1.2558 | J14: 1
G15: ETAPA: | H15: Diagnóstico/Estudos Alternativas | M15: Projeto Executivo de Engenharia
A16: TOTAL | B16: VALOR TOTAL POR PRODUTO | C16: R$ | D16: =SUM(H16:S16) -> 127700.732 | H16: =SUMPRODUCT($F$6:$F$14,H6:H14) -> 5835.999 | I16: 5835.999 | J16: 12359.967 | K16: 5835.999 | L16: 5835.999 | M16: 17940.0485 | N16: 17940.0485 | O16: 10296.443 | P16: 10296.443 | Q16: 14843.8935 | R16: 14843.8935 | S16: 5835.999
C17: % | D17: 1.00001 | H17: =ROUND(H16/$D$16,5) -> 0.0457 | I17: =ROUND(I16/$D$16,5) -> 0.0457 | J17: 0.09679 | K17: 0.0457 | L17: 0.0457 | M17: 0.14049 | N17: 0.14049 | O17: 0.08063 | P17: 0.08063 | Q17: 0.11624 | R17: 0.11624 | S17: 0.0457
A18: TOTAL | B18: VALOR DOS SUBPRODUTOS | C18: R$ | D18: 102160.5856 | H18: =H16*0.8 -> 4668.7992 | I18: =I16*0.8 -> 4668.7992 | J18: 9887.9736 | K18: 4668.7992 | L18: 4668.7992 | M18: 14352.0388 | N18: =N16*0.8 -> 14352.0388 | O18: 8237.1544 | P18: 8237.1544 | Q18: 11875.1148 | R18: 11875.1148 | S18: 4668.7992
B19: VALOR DO PRODUTO CONSOLIDADO | C19: R$ | D19: 25540.1464 | H19: =H16*0.2 -> 1167.1998 | I19: =I16*0.2 -> 1167.1998 | J19: 2471.9934 | K19: 1167.1998 | L19: 1167.1998 | M19: 3588.0097 | N19: =N16*0.2 -> 3588.0097 | O19: 2059.2886 | P19: 2059.2886 | Q19: 2968.7787 | R19: 2968.7787 | S19: 1167.1998

Sheet CRO2_Pro-Mes
A1: CRONOGRAMA SIMPLIFICADO - CRO
A2: =PFP!A3 -> ADAPTAÇÃO DO PROJETO EXECUTIVO DO SISTEMA ADUTOR DE MARCOLÂNDIA-PI E DISTRITO DE SERRÂNIA (ARARIPINA-PE)
A3: Cod. | B3: Produto/ Mês | C3: Soma | D3: 1 | E3: 2 | F3: 3 | G3: 4 | H3: 5 | I3: 6 | J3: 7 | K3: 8 | L3: 9 | M3: 10 | N3: 11 | O3: 12
A4: E-1.1 | B4: Estudos Preliminares | C4: =COUNTA(D4:O4) -> 2 | D4: x | E4: x
A5: E-1.2 | B5: Estudos de Diagnóstico | C5: =COUNTA(D5:O5) -> 1 | F5: x
A6: E-1.3 | B6: Estudos Populacionais e de Demanda Hídrica | C6: 1 | G6: x
A7: E-1.4 | B7: Relatório Final do Diagnóstico e Estudo de Alternativas | C7: 1 | H7: x
A8: E-2.1 | B8: Projetos Técnicos: hidromecânicos | C8: 2 | I8: x | J8: x
A9: E-2.2 | B9: Projetos Técnicos: complementares | C9: 2 | I9: x | J9: x
A10: E-2.3 | B10: Memoriais de cálculo | C10: 1 | K10: x
A11: E-2.4 | B11: Memorial Descritivo e Especificações Técnicas | C11: 2 | K11: x | L11: x
A12: E-2.5 | B12: Orçamentos | C12: 3 | L12: x | M12: x | N12: x
A13: E-2.6 | B13: Estudos ambientais | C13: 2 | M13: x | N13: x
A14: E-2.7 | B14: Relatório final do projeto executivo de engenharia | C14: 1 | O14: x
